bitfinex/quotes_ETHUSD_20250905
["timestamp","ask_amount","ask_price","bid_price","bid_amount"]
[1757038438372,1e-08,4334.3,4334.0,0.3112]
[1757038438582,1e-08,4334.3,4334.1,0.8921]
[1757038438861,2.3071988,4334.3,4334.1,0.8921]
[1757038439028,2.3071988,4334.3,4334.2,1.1993]
[1757038439230,2.3071988,4334.3,4334.2,0.7661]
[1757038439458,2.30728409,4334.1,4334.0,0.004]
[1757038439980,2.30728409,4334.1,4334.0,0.3112]
[1757038440165,2.30728409,4334.1,4334.0,0.004]
[1757038440463,6.95138409,4334.1,4334.0,0.004]
[1757038440758,11.32252428,4333.6,4333.5,0.004]
[1757038440957,15.30972428,4333.6,4333.5,0.004]
[1757038441150,5.4227503,4333.6,4333.5,0.7701]
[1757038441353,5.7159503,4333.6,4333.5,0.004]
[1757038441553,6.9516503,4333.6,4333.5,0.004]
[1757038441932,6.5079503,4333.6,4333.5,0.004]
[1757038442431,6.2147503,4333.6,4333.5,0.7701]
[1757038442630,10.0867503,4333.6,4333.5,0.7701]
[1757038443141,10.3799503,4333.6,4333.5,0.4629]
[1757038443342,10.3799503,4333.6,4333.5,0.004]
[1757038443545,10.8236503,4333.6,4333.5,0.004]
[1757038443742,10.3799503,4333.6,4333.5,0.004]
[1757038444274,5.4227503,4333.6,4333.5,0.7701]
[1757038444479,5.3075503,4333.6,4333.5,1.2033]
[1757038445742,3.0,4333.6,4333.5,1.2033]
[1757038446143,5.3075503,4333.6,4333.5,1.2033]
[1757038447874,3.0,4333.6,4333.5,1.2033]
[1757038449241,5.3075503,4333.6,4333.5,1.2033]
[1757038449742,3.0,4333.6,4333.5,1.2033]
[1757038450879,0.1162,4334.0,4333.5,1.2033]
[1757038450880,0.001,4334.0,4333.5,1.45075]
[1757038451081,0.001,4334.0,4333.6,2.6059]
[1757038451281,0.001,4334.0,4333.9,0.1152]
[1757038451440,0.001,4334.0,4333.9,0.4017]
[1757038451640,0.001,4334.0,4333.9,0.93320932]
[1757038451834,0.001,4334.0,4333.9,1.83810932]
[1757038453560,0.001,4334.0,4333.9,5.71010932]
[1757038454465,0.001,4334.0,4333.9,0.8711]
[1757038454667,2.60323733,4334.0,4333.9,0.1152]
[1757038455007,2.60323733,4334.0,4333.6,1.701]
[1757038455008,2.30749705,4333.7,4333.6,1.701]
[1757038455182,2.30749705,4333.7,4333.6,1.9875]
[1757038455375,2.30749705,4333.7,4333.6,2.4569]
[1757038455987,2.30749705,4333.7,4333.6,2.1704]
[1757038456483,2.30749705,4333.7,4333.6,2.4569]
[1757038457978,2.30749705,4333.7,4333.6,2.1704]
[1757038458286,2.307445,4333.8,4333.6,2.4569]
[1757038458491,2.307445,4333.8,4333.7,0.4694]
[1757038459786,2.307445,4333.8,4333.7,0.7559]
[1757038461089,2.307445,4333.8,4333.7,0.4694]
[1757038461252,2.30749705,4333.7,4333.5,3.875]
[1757038461882,2.30749705,4333.7,4333.6,0.4694]
[1757038463157,2.30744859,4333.8,4333.6,0.7559]
[1757038463389,0.1162,4334.0,4333.7,0.4694]
[1757038463974,2.30744381,4333.8,4333.7,0.4694]
[1757038465097,2.30739564,4333.9,4333.7,0.4694]
[1757038465396,0.1162,4334.0,4333.7,0.7559]
[1757038465695,0.001,4334.0,4333.8,0.92797443]
[1757038465889,0.001,4334.0,4333.8,0.9049]
[1757038466065,0.001,4334.0,4333.9,1.1914]
[1757038466390,2.30833733,4334.0,4333.9,0.4694]
[1757038466590,5.30747564,4333.8,4333.6,0.1152]
[1757038466894,2.30747564,4333.8,4333.7,3.871]
[1757038467262,5.3073911,4333.9,4333.7,4.3404]
[1757038467482,2.3073911,4333.9,4333.7,4.3404]
[1757038467896,2.30739057,4333.9,4333.7,4.3404]
[1757038468566,2.30744381,4333.8,4333.7,4.3404]
[1757038468890,2.30739824,4333.9,4333.7,0.4694]
[1757038469090,2.30744381,4333.8,4333.7,4.3404]
[1757038469460,0.001,4334.0,4333.7,4.6269]
[1757038469793,0.001,4334.0,4333.8,0.4694]
[1757038470201,2.30739362,4333.9,4333.8,0.4694]
[1757038470366,2.30744381,4333.8,4333.7,3.871]
[1757038470700,2.30744381,4333.8,4333.7,4.3404]
[1757038471266,2.60234381,4333.8,4333.7,3.871]
[1757038471466,5.60234381,4333.8,4333.7,3.871]
[1757038472518,5.30749705,4333.7,4333.6,0.1192]
[1757038472663,2.30749705,4333.7,4333.6,3.875]
[1757038473399,5.60239705,4333.7,4333.6,0.004]
[1757038473570,15.92027103,4333.7,4333.6,0.004]
[1757038477203,10.26439705,4333.7,4333.6,0.004]
[1757038477382,15.92027103,4333.7,4333.6,0.004]
[1757038479682,15.48737103,4333.7,4333.6,0.004]
[1757038479882,9.17749705,4333.7,4333.6,0.7668]
[1757038480089,9.17749705,4333.7,4333.6,1.2334]
[1757038480684,9.17749705,4333.7,4333.6,0.7668]
[1757038481092,5.30749705,4333.7,4333.6,0.7668]
[1757038481276,9.17749705,4333.7,4333.6,0.7668]
[1757038482003,9.17749705,4333.7,4333.6,0.4544]
[1757038482203,9.48879705,4333.7,4333.6,0.4544]
[1757038482403,9.17749705,4333.7,4333.6,0.4544]
[1757038483578,5.30749705,4333.7,4333.6,1.2334]
[1757038487309,5.30749705,4333.7,4333.6,0.7668]
[1757038487682,9.17749705,4333.7,4333.6,0.7668]
[1757038488285,9.17749705,4333.7,4333.6,0.4544]
[1757038488681,6.87,4333.7,4333.6,0.7668]
[1757038488882,9.17749705,4333.7,4333.6,1.2334]
[1757038489523,3.0,4333.7,4333.6,1.2334]
[1757038492386,5.30749705,4333.7,4333.6,0.7668]
[1757038492590,5.30749705,4333.7,4333.6,0.4544]
[1757038492919,9.48879705,4333.7,4333.6,0.004]
[1757038494693,14.71177103,4333.7,4333.6,0.004]
[1757038495043,15.95557103,4333.7,4333.6,0.004]
[1757038495519,16.07077103,4333.7,4333.6,0.004]
[1757038499092,6.0995503,4333.6,4333.5,0.004]
[1757038499602,11.30263969,4333.6,4333.5,0.004]
[1757038500743,5.6188503,4333.6,4333.5,0.004]
[1757038501023,5.3075503,4333.6,4333.5,0.7668]
[1757038501392,9.2917503,4333.6,4333.5,0.7668]
[1757038502933,9.6030503,4333.6,4333.5,0.004]
[1757038503091,5.7340503,4333.6,4333.5,0.004]
[1757038503296,9.6030503,4333.6,4333.5,0.004]
[1757038505435,13.73173969,4333.6,4333.5,0.7668]
[1757038507315,13.73173969,4333.6,4333.5,0.4544]
[1757038507895,9.86273969,4333.6,4333.5,0.4544]
[1757038508107,0.001,4334.0,4333.5,0.7668]
[1757038508308,3.0,4333.7,4333.5,0.783]
[1757038508514,3.869,4333.6,4333.5,0.783]
[1757038508912,6.1765503,4333.6,4333.5,0.4591]
[1757038509123,6.1765503,4333.6,4333.5,0.7532]
[1757038509333,9.1765503,4333.6,4333.5,1.1974]
[1757038509510,6.869,4333.6,4333.5,1.1974]
[1757038509705,9.1765503,4333.6,4333.5,1.1974]
[1757038514424,9.1765503,4333.6,4333.5,0.7532]
[1757038514633,3.0,4333.6,4333.5,1.1974]
[1757038514935,5.3075503,4333.6,4333.5,1.1974]
[1757038516834,3.0,4333.6,4333.5,1.1974]
[1757038517131,0.001,4334.0,4333.5,1.32906]
[1757038517333,0.001,4334.0,4333.6,0.8993]
[1757038517551,0.001,4334.0,4333.9,0.1152]
[1757038517737,0.001,4334.0,4333.9,0.4093]
[1757038518242,0.001,4334.0,4333.9,1.3086]
[1757038518739,0.001,4334.0,4333.9,1.67021368]
[1757038519809,0.001,4334.0,4333.9,3.97760425]
[1757038520334,0.001,4334.0,4333.9,4.07008071]
[1757038521038,0.001,4334.0,4333.9,4.09315461]
[1757038524145,0.001,4334.0,4333.9,4.07008071]
[1757038524340,0.001,4334.0,4333.9,4.09315461]
[1757038524548,0.001,4334.0,4333.9,4.07008071]
[1757038524735,0.001,4334.0,4333.9,4.09315461]
[1757038525324,0.001,4334.0,4333.9,8.5100701]
[1757038526012,0.001,4334.0,4333.9,1.76269014]
[1757038526211,0.001,4334.0,4333.9,4.07008071]
[1757038528918,0.001,4334.0,4333.9,3.62588071]
[1757038529120,0.001,4334.0,4333.9,7.49288071]
[1757038529333,0.001,4334.0,4333.9,7.93708071]
[1757038532259,1e-08,4334.3,4334.2,2.30723086]
[1757038532552,0.001,4334.9,4334.6,2.30699355]
[1757038532752,0.001,4334.9,4334.8,7.04100089]
[1757038532933,0.001,4334.9,4334.8,7.15620089]
[1757038533134,0.001,4334.9,4334.8,8.05550089]
[1757038533332,0.001,4334.9,4334.8,9.47845033]
[1757038538928,0.001,4334.9,4334.8,5.03846094]
[1757038545777,0.001,4334.9,4334.8,8.83046094]
[1757038549253,0.001,4334.9,4334.8,7.59426094]
[1757038549455,0.2947,4334.9,4334.8,3.84506094]
[1757038549684,0.7674,4334.9,4334.8,7.70906094]
[1757038550094,0.2947,4334.9,4334.8,1.53814944]
[1757038550294,0.8014,4334.9,4334.8,3.9832]
[1757038550584,0.2947,4334.9,4334.8,6.2901115]
[1757038550784,0.2947,4334.9,4334.8,7.47854499]
[1757038551886,0.7674,4334.9,4334.8,7.47854499]
[1757038552185,0.7674,4334.9,4334.8,6.2901115]
[1757038555292,0.001,4334.9,4334.8,6.2901115]
[1757038555866,0.001,4334.9,4334.8,7.0421115]
[1757038556190,0.001,4334.9,4334.8,7.4935115]
[1757038556792,0.001,4334.9,4334.8,7.0421115]
[1757038556989,0.001,4334.9,4334.8,9.19883259]
[1757038557195,0.001,4334.9,4334.8,8.74743259]
[1757038558492,0.2947,4334.9,4334.8,7.99543259]
[1757038558894,0.001,4334.9,4334.8,8.28063259]
[1757038559202,0.001,4334.9,4334.8,8.74743259]
[1757038559561,0.001,4334.9,4334.8,13.63882198]
[1757038559780,0.001,4334.9,4334.8,13.18742198]
[1757038561171,0.001,4334.9,4334.8,13.63882198]
[1757038561495,0.001,4334.9,4334.8,8.74743259]
[1757038561697,0.001,4334.9,4334.8,8.46223259]
[1757038562900,0.001,4334.9,4334.8,7.99543259]
[1757038563070,0.2947,4334.9,4334.8,7.99543259]
[1757038564768,0.001,4334.9,4334.8,14.41589623]
[1757038565571,0.001,4334.9,4334.8,13.96449623]
[1757038566272,0.001,4334.9,4334.8,14.41589623]
[1757038568598,0.001,4334.9,4334.8,8.46223259]
[1757038568775,0.2947,4334.9,4334.8,7.99543259]
[1757038568976,0.2947,4334.9,4334.8,9.69543259]
[1757038569183,0.7263,4334.9,4334.8,1.8192]
[1757038569384,0.7263,4334.9,4334.8,7.9901115]
[1757038569983,0.2947,4334.9,4334.8,7.9901115]
[1757038570889,0.7263,4334.9,4334.8,7.9901115]
[1757038572093,0.2947,4334.9,4334.8,7.9901115]
[1757038573011,0.7263,4334.9,4334.8,7.9901115]
[1757038573203,0.2947,4334.9,4334.8,7.9901115]
[1757038573409,0.2947,4334.9,4334.8,9.01982313]
[1757038574621,0.001,4334.9,4334.8,9.32422313]
[1757038574822,0.001,4334.9,4334.8,9.48672313]
[1757038575196,0.302,4334.9,4334.8,9.01982313]
[1757038579926,0.7336,4334.9,4334.8,9.01982313]
[1757038580637,0.302,4334.9,4334.8,9.01982313]
[1757038581490,0.001,4334.9,4334.8,9.79112313]
[1757038581893,0.001,4334.9,4334.8,10.22872313]
[1757038582202,0.001,4334.9,4334.8,15.44578677]
[1757038582996,0.001,4334.9,4334.8,18.44578677]
[1757038584838,0.001,4334.9,4334.8,12.48672313]
[1757038585051,0.001,4334.9,4334.8,9.48672313]
[1757038585430,0.001,4334.9,4334.8,9.79112313]
[1757038586159,0.001,4334.9,4334.8,10.22872313]
[1757038586760,0.001,4334.9,4334.8,9.79112313]
[1757038588451,0.001,4334.9,4334.8,12.13112313]
[1757038588646,0.001,4334.9,4334.8,12.34647788]
[1757038588852,0.001,4334.9,4334.8,12.78407788]
[1757038589218,0.001,4334.9,4334.8,21.79314152]
[1757038592476,0.001,4334.9,4334.8,21.79290994]
[1757038593745,0.025,4336.8,4336.4,2.30606032]
[1757038593976,0.025,4336.8,4336.4,13.43950773]
[1757038594179,0.035,4338.1,4336.5,3.0]
[1757038594347,0.035,4338.5,4337.7,2.3053692]
[1757038594544,0.035,4338.5,4337.7,8.68882847]
[1757038594876,0.326,4337.8,4337.7,8.66577478]
[1757038598289,0.025,4337.8,4337.7,8.66577478]
[1757038598492,0.025,4337.8,4337.7,9.43707478]
[1757038598696,0.025,4337.8,4337.7,9.13267478]
[1757038599009,0.7876,4337.8,4337.7,6.35840558]
[1757038599162,0.7876,4337.8,4337.7,5.89732317]
[1757038599571,0.7876,4337.8,4337.7,2.02749383]
[1757038599889,0.8226,4337.8,4337.7,1.8152]
[1757038600095,3.12791605,4337.8,4337.7,5.6872]
[1757038600314,6.12791605,4337.8,4337.7,3.872]
[1757038600795,3.8236,4337.8,4337.7,3.872]
[1757038600970,2.3054755,4337.5,4336.9,1.699]
[1757038601176,2.30564433,4337.2,4337.0,3.871]
[1757038601365,0.8044,4337.1,4337.0,3.871]
[1757038603079,3.11008813,4337.1,4337.0,3.871]
[1757038603402,0.8044,4337.1,4337.0,3.871]
[1757038604404,3.11010913,4337.1,4336.9,1.8142]
[1757038604571,5.61348813,4337.1,4337.0,3.876]
[1757038604774,5.72868813,4337.1,4337.0,3.876]
[1757038605176,6.22528813,4337.1,4337.0,3.876]
[1757038605576,6.22528813,4337.1,4336.9,3.876]
[1757038605577,5.30574129,4337.0,4336.9,3.876]
[1757038605776,2.80234129,4337.0,4336.9,3.876]
[1757038606080,3.0,4336.9,4336.5,0.1152]
[1757038606302,0.035,4336.9,4336.2,1.699]
[1757038606577,2.6139135,4336.3,4336.2,1.8142]
[1757038606891,0.8044,4336.3,4336.2,3.9902]
[1757038607212,0.7694,4336.3,4336.2,3.9902]
[1757038607990,3.0,4336.9,4336.2,3.9902]
[1757038608313,2.76741839,4336.9,4336.6,0.1152]
[1757038608517,2.76741839,4336.9,4336.6,3.9892]
[1757038608678,0.3078,4336.7,4336.6,3.9892]
[1757038609018,0.7694,4336.7,4336.6,3.9892]
[1757038609582,0.3078,4336.7,4336.6,3.9892]
[1757038611096,3.3078,4336.7,4336.6,3.9892]
[1757038611298,3.0753008,4336.7,4336.6,3.9892]
[1757038611607,3.1103008,4336.7,4336.6,0.1152]
[1757038611927,2.3061135,4336.3,4336.2,3.873]
[1757038612130,2.3061135,4336.3,4336.2,3.82131341]
[1757038612131,5.6139135,4336.3,4336.2,3.82131341]
[1757038612294,6.0755135,4336.3,4336.2,3.82131341]
[1757038612490,3.7694,4336.3,4336.2,0.21431341]
[1757038612691,14.94847684,4336.3,4336.0,0.1152]
[1757038612896,14.94847684,4336.3,4335.8,0.025]
[1757038612897,2.30621987,4336.1,4335.8,0.025]
[1757038613096,5.30685828,4334.9,4334.4,1.699]
[1757038613288,6.04571646,4334.9,4334.5,3.892]
[1757038613592,6.50731646,4334.9,4334.5,3.892]
[1757038614593,1.20045818,4334.9,4334.5,3.892]
[1757038614794,3.50731646,4334.9,4334.5,3.892]
[1757038615224,6.50731646,4334.9,4334.5,3.892]
[1757038616600,6.07625828,4334.9,4334.5,3.892]
[1757038616816,6.08625828,4334.9,4333.9,0.004]
[1757038617127,6.87825828,4334.9,4333.9,0.004]
[1757038617301,6.87825828,4334.9,4333.9,0.788]
[1757038617506,6.87825828,4334.9,4333.9,0.004]
[1757038618740,10.76925828,4334.9,4333.9,0.004]
[1757038620938,10.94125038,4334.9,4333.9,0.004]
[1757038621413,10.93125038,4334.9,4333.9,0.004]
[1757038621840,5.61465828,4334.9,4333.9,0.476]
[1757038622128,2.30676206,4335.1,4334.8,1.2846]
[1757038622320,3.0,4335.3,4334.9,0.4703]
[1757038622497,2.30680507,4335.0,4334.9,0.4703]
[1757038622697,0.3078,4335.0,4334.8,0.029]
[1757038622898,2.76845828,4334.9,4334.8,0.029]
[1757038623437,6.86825828,4334.9,4334.8,0.029]
[1757038623644,6.87825828,4334.9,4334.8,0.029]
[1757038624138,8.57825828,4334.9,4334.8,1e-08]
[1757038628818,12.46725828,4334.9,4334.8,1e-08]
[1757038629535,0.792,4334.5,4334.3,1e-08]
[1757038629706,21.81542642,4334.4,4334.3,1e-08]
[1757038629912,22.55682642,4334.4,4334.3,1e-08]
[1757038630313,22.67202642,4334.4,4334.3,1e-08]
[1757038630843,6.5041244,4334.4,4334.3,1e-08]
[1757038631050,10.1023244,4334.4,4334.3,0.29020001]
[1757038631221,9.3103244,4334.4,4334.3,0.76030001]
[1757038631427,9.3103244,4334.4,4334.3,0.47010001]
[1757038631627,10.1023244,4334.4,4334.3,0.47010001]
[1757038631829,10.3921244,4334.4,4334.3,1e-08]
[1757038633143,10.8337244,4334.4,4334.3,1e-08]
[1757038633348,10.3921244,4334.4,4334.3,1e-08]
[1757038633833,10.8337244,4334.4,4334.3,1e-08]
[1757038634147,22.66102642,4334.4,4334.3,1e-08]
[1757038634556,0.792,4332.9,4332.4,0.4741]
[1757038634755,21.81322512,4332.9,4332.8,1e-08]
[1757038634929,0.792,4332.7,4332.4,0.004]
[1757038635249,5.30797636,4332.8,4331.8,1e-08]
[1757038635250,6.10045587,4331.9,4331.8,1e-08]
[1757038635447,23.81255789,4331.9,4331.8,1e-08]
[1757038635650,24.25415789,4331.9,4331.8,1e-08]
[1757038640118,24.25415789,4331.9,4330.8,0.4951]
[1757038640119,3.10098889,4330.9,4330.8,0.025]
[1757038640321,6.99198889,4330.9,4330.8,0.025]
[1757038640549,9.99198889,4330.9,4330.8,0.025]
[1757038641443,9.99198889,4330.9,4330.8,0.7853]
[1757038641854,6.10098889,4330.9,4330.8,0.7853]
[1757038642050,9.19998889,4330.9,4330.8,1.2403]
[1757038642559,9.99198889,4330.9,4330.8,0.7853]
[1757038642937,10.28178889,4330.9,4330.8,0.025]
[1757038643757,10.28178889,4330.9,4330.8,1e-08]
[1757038644068,10.72338889,4330.9,4330.8,1e-08]
[1757038644664,0.792,4330.0,4329.2,0.4701]
[1757038644965,3.0,4330.8,4328.3,0.4701]
[1757038644966,2.31005567,4328.9,4328.8,0.48]
[1757038645149,6.10205567,4328.9,4328.8,0.025]
[1757038645373,10.10725567,4328.9,4328.8,0.025]
[1757038645728,6.21725567,4328.9,4328.8,0.7853]
[1757038645933,9.31625567,4328.9,4328.8,1.2403]
[1757038646263,5.31005567,4328.9,4328.8,1.2403]
[1757038646448,9.20105567,4328.9,4328.8,1.2403]
[1757038647560,3.0,4328.9,4328.8,1.2403]
[1757038647762,0.1152,4329.0,4328.8,1.36433]
[1757038648058,0.1152,4329.0,4328.9,0.9251]
[1757038648465,3.0,4329.2,4328.9,1.2153]
[1757038648665,3.891,4329.1,4328.9,1.2153]
[1757038648866,2.30994716,4329.2,4328.9,0.2902]
[1757038649065,3.0,4329.1,4328.9,0.2902]
[1757038649267,2.30959342,4329.8,4328.9,0.2902]
[1757038649268,0.1152,4329.7,4329.0,0.1152]
[1757038649467,3.89,4329.7,4329.6,0.2902]
[1757038649669,6.89,4329.7,4329.6,1.2153]
[1757038649869,3.0,4329.7,4329.6,1.2153]
[1757038650570,5.30962884,4329.7,4329.6,1.2153]
[1757038650737,6.10162884,4329.7,4329.6,0.7603]
[1757038650942,2.30988892,4329.3,4329.2,0.4701]
[1757038651142,2.30988892,4329.3,4328.8,0.1402]
[1757038651344,2.30988892,4329.3,4329.2,0.2902]
[1757038651746,2.30988892,4329.3,4329.2,1.2153]
[1757038651945,0.1152,4329.4,4329.2,1.2153]
[1757038652152,0.1152,4329.4,4329.3,0.9251]
[1757038652353,3.0,4329.4,4329.3,0.9251]
[1757038652582,6.31387782,4329.7,4329.3,1.2153]
[1757038652889,2.30969255,4329.6,4329.4,0.9251]
[1757038653076,3.1152,4329.7,4329.6,0.2902]
[1757038653292,3.1152,4329.7,4329.6,1.2153]
[1757038653850,0.1152,4329.7,4329.6,1.2153]
[1757038654051,3.1152,4329.7,4329.6,1.2153]
[1757038654249,5.42482884,4329.7,4329.6,1.2153]
[1757038654465,5.42482884,4329.7,4329.6,0.7603]
[1757038655487,5.42482884,4329.7,4329.3,0.004]
[1757038655488,3.10178888,4329.4,4329.3,0.004]
[1757038655643,3.10178888,4329.4,4328.8,0.025]
[1757038655644,3.10205567,4328.9,4328.8,0.025]
[1757038655849,10.39505567,4328.9,4328.8,0.025]
[1757038656044,10.83665567,4328.9,4328.8,0.025]
[1757038656861,10.39505567,4328.9,4328.8,0.025]
[1757038658051,10.39405567,4328.9,4328.8,0.025]
[1757038658862,10.83565567,4328.9,4328.8,0.025]
[1757038659269,10.82295567,4328.9,4328.8,0.025]
[1757038659899,10.82295567,4328.9,4328.5,0.004]
[1757038659900,2.31021577,4328.6,4328.5,0.004]
[1757038660203,9.19621577,4328.6,4328.5,0.004]
[1757038660373,9.93391577,4328.6,4328.5,0.004]
[1757038660568,10.04911577,4328.6,4328.5,0.004]
[1757038661581,5.73421577,4328.6,4328.5,0.004]
[1757038661896,10.84011577,4328.6,4328.5,0.004]
[1757038662294,10.41121577,4328.6,4328.5,0.004]
[1757038663006,2.31058943,4327.9,4327.8,0.025]
[1757038663205,9.31178943,4327.9,4327.8,0.025]
[1757038663499,10.41258943,4327.9,4327.8,0.025]
[1757038663702,10.84148943,4327.9,4327.8,0.025]
[1757038664508,10.41258943,4327.9,4327.8,0.025]
[1757038665369,11.01722976,4327.9,4327.8,0.025]
[1757038665566,2.31112343,4326.9,4326.8,0.4862]
[1757038665766,9.19712343,4326.9,4326.8,0.4862]
[1757038665966,9.19712343,4326.9,4326.8,0.025]
[1757038665967,10.72682343,4326.9,4326.8,0.025]
[1757038666190,10.30092343,4326.9,4326.8,0.025]
[1757038667264,10.30092343,4326.9,4326.8,1e-08]
[1757038667466,10.72982343,4326.9,4326.8,1e-08]
[1757038669109,10.72982343,4326.9,4325.8,0.4862]
[1757038669110,3.10365768,4325.9,4325.8,0.4862]
[1757038669292,9.99265768,4325.9,4325.8,0.4862]
[1757038669496,10.10785768,4325.9,4325.8,0.7769]
[1757038670578,10.10785768,4325.9,4325.8,1.2112]
[1757038673408,10.10785768,4325.9,4325.8,0.7809]
[1757038673910,2.31219218,4324.9,4324.8,0.025]
[1757038674070,10.10719218,4324.9,4324.8,0.025]
[1757038674269,10.41599218,4324.9,4324.8,0.025]
[1757038674481,10.84789218,4324.9,4324.8,0.025]
[1757038674683,10.41899218,4324.9,4324.8,0.025]
[1757038676078,3.10461996,4324.1,4324.0,0.4612]
[1757038676291,6.10472693,4323.9,4323.7,0.4343]
[1757038676499,6.10472693,4323.9,4322.9,0.116]
[1757038676811,10.00672693,4323.9,4323.8,0.7769]
[1757038677309,10.00672693,4323.9,4323.8,1.2112]
[1757038678215,10.00572693,4323.9,4323.8,0.7769]
[1757038678512,10.00572693,4323.9,4323.8,0.025]
[1757038678678,10.00572693,4323.9,4323.8,0.4862]
[1757038678874,10.31452693,4323.9,4323.8,0.025]
[1757038679279,6.10472693,4323.9,4323.8,0.3157]
[1757038679521,10.12172693,4323.9,4323.8,0.7769]
[1757038679818,6.52952693,4323.9,4323.8,0.025]
[1757038680184,10.43152693,4323.9,4323.8,0.025]
[1757038680889,6.52952693,4323.9,4323.8,0.025]
[1757038681112,6.22072693,4323.9,4323.8,0.7769]
[1757038681326,10.43152693,4323.9,4323.8,0.025]
[1757038681482,10.86042693,4323.9,4323.8,0.025]
[1757038681922,2.31326193,4322.9,4322.8,0.4862]
[1757038682103,6.33126193,4322.9,4322.8,0.4862]
[1757038682411,6.33126193,4322.9,4320.5,2.31454361]
[1757038682412,2.31374363,4322.0,4321.9,0.4612]
[1757038682614,9.21574363,4322.0,4321.9,0.7519]
[1757038682801,9.21574363,4322.0,4321.9,1.1862]
[1757038683003,5.31374363,4322.0,4321.9,1.1862]
[1757038683382,9.21774363,4322.0,4321.9,1.1862]
[1757038683799,5.31374363,4322.0,4321.9,1.1862]
[1757038683998,9.21774363,4322.0,4321.9,1.1862]
[1757038684413,3.0,4322.0,4321.9,1.1862]
[1757038684629,6.903,4322.0,4321.9,1.1862]
[1757038684786,3.0,4322.0,4321.9,1.1862]
[1757038686020,3.904,4322.4,4321.9,1.1862]
[1757038686189,3.904,4322.4,4322.0,0.8955]
[1757038686385,1.704,4322.5,4322.3,0.2907]
[1757038686791,3.904,4322.5,4322.3,0.2907]
[1757038687187,3.0,4322.5,4322.4,0.8955]
[1757038687393,3.0,4322.5,4322.4,1.1862]
[1757038687394,6.904,4322.5,4322.4,1.1862]
[1757038687592,6.904,4322.5,4322.4,1.3022]
[1757038687830,9.21747599,4322.5,4322.4,0.7519]
[1757038687991,9.33347599,4322.5,4322.4,0.4612]
[1757038688593,9.33447599,4322.5,4322.4,0.7519]
[1757038688813,2.31364019,4322.2,4321.8,0.5753]
[1757038689040,9.2196901,4322.1,4322.0,0.4968]
[1757038689337,2.31379717,4321.9,4321.8,0.025]
[1757038689633,9.22079717,4321.9,4321.8,0.025]
[1757038689803,10.31499717,4321.9,4321.8,0.025]
[1757038690135,10.78839717,4321.9,4321.8,0.025]
[1757038690302,3.0,4321.8,4320.8,1e-08]
[1757038690622,5.31424617,4321.1,4320.8,1e-08]
[1757038690790,3.0,4320.9,4320.8,1e-08]
[1757038691190,5.31433266,4320.9,4320.8,0.49680001]
[1757038691505,5.31433266,4320.9,4320.8,0.50080001]
[1757038691922,6.10633266,4320.9,4320.8,0.00400001]
[1757038692314,6.10633266,4320.9,4320.8,0.50080001]
[1757038692516,0.792,4320.8,4319.9,0.004]
[1757038692693,2.31540438,4318.9,4318.2,0.4968]
[1757038692893,7.835,4318.9,4318.2,0.4968]
[1757038693094,7.835,4318.9,4318.8,0.5218]
[1757038693095,3.0,4318.9,4318.8,0.5218]
[1757038693310,1.705,4319.1,4318.8,1.2956]
[1757038693311,3.0,4319.1,4318.8,1.2956]
[1757038693538,3.0,4319.1,4318.9,0.9628]
[1757038693716,3.0,4319.1,4319.0,1.2706]
[1757038694249,0.792,4319.0,4317.9,0.0231594]
[1757038694400,0.792,4317.9,4317.8,0.025]
[1757038694606,8.78,4318.9,4317.9,0.466]
[1757038694607,4.075,4318.1,4317.9,0.466]
[1757038694832,1.705,4318.9,4318.0,0.4968]
[1757038695017,3.0,4318.7,4318.0,0.8046]
[1757038695198,0.792,4318.6,4318.0,0.8046]
[1757038695402,3.0,4318.4,4318.0,0.8046]
[1757038695620,3.0,4318.4,4318.1,0.4968]
[1757038696833,0.792,4318.6,4318.2,0.4968]
[1757038697034,5.497,4318.9,4317.8,0.025]
[1757038697035,3.0,4318.4,4318.3,1.2706]
[1757038697413,3.0,4318.4,4318.3,0.8046]
[1757038699036,3.0,4318.4,4317.8,0.025]
[1757038699224,0.3012,4318.4,4317.8,0.025]
[1757038699533,3.0,4318.2,4317.8,0.491]
[1757038699720,0.116,4318.1,4317.9,0.4968]
[1757038699928,3.0,4318.1,4318.0,1.2706]
[1757038700505,3.0,4318.1,4318.0,0.8046]
[1757038700706,2.31594061,4317.9,4317.8,0.025]
[1757038700906,9.38994061,4317.9,4317.8,0.025]
[1757038701105,3.0,4317.9,4317.8,0.025]
[1757038701332,7.075,4317.9,4317.8,0.025]
[1757038701924,3.0,4317.9,4317.8,0.025]
[1757038702124,3.0,4317.9,4317.8,1.2956]
[1757038702324,7.073,4317.9,4317.8,1.2956]
[1757038702647,7.073,4317.9,4317.8,0.8296]
[1757038703248,3.0,4317.9,4317.8,0.8296]
[1757038703449,7.073,4317.9,4317.8,0.8296]
[1757038704126,3.0,4317.9,4317.8,0.8296]
[1757038704319,7.07,4317.9,4317.8,0.8296]
[1757038704650,3.0,4317.9,4317.8,0.8296]
[1757038705044,3.0,4317.9,4317.8,1.2956]
[1757038705467,3.0,4317.9,4317.8,1.4116]
[1757038705652,0.116,4318.5,4317.8,1.4116]
[1757038705839,5.332,4319.9,4317.8,1.4116]
[1757038705840,2.1794,4319.4,4317.9,0.9859594]
[1757038706046,0.116,4319.0,4318.4,0.116]
[1757038706549,3.0,4318.8,4318.4,0.116]
[1757038706757,1.706,4320.1,4318.5,0.9628]